bitfinex/quotes_SOLUSD_20220306
["timestamp","ask_amount","ask_price","bid_price","bid_amount"]
[1646575524132,0.53030758,87.637,87.546,14.25916134]
[1646575524429,0.53030758,87.635,87.546,14.25916134]
[1646575524629,0.53030758,87.633,87.546,14.25916134]
[1646575524831,5.707,87.632,87.547,56.13186509]
[1646575525030,5.707,87.632,87.57,17.1358]
[1646575525230,5.707,87.636,87.57,17.1358]
[1646575525430,5.707,87.637,87.57,17.1358]
[1646575528232,5.83910473,87.629,87.57,17.1358]
[1646575528430,5.707,87.628,87.57,17.1358]
[1646575528631,5.707,87.628,87.56,17.1379]
[1646575529032,114.1,87.627,87.56,17.1379]
[1646575529232,114.1,87.625,87.56,17.1379]
[1646575529439,5.708,87.624,87.56,17.1379]
[1646575529636,5.708,87.627,87.57,17.1362]
[1646575532837,17.1374,87.62,87.571,5.707]
[1646575533238,17.1374,87.62,87.57,17.1362]
[1646575533639,5.708,87.627,87.57,17.1362]
[1646575535740,4.9783845,87.625,87.551,24.9324]
[1646575535942,4.9783845,87.625,87.51,13.72]
[1646575535943,114.1,87.619,87.552,5.708]
[1646575536140,13.72,87.62,87.552,5.708]
[1646575536141,114.1,87.609,87.552,5.708]
[1646575536343,0.50342867,87.606,87.53,5.708]
[1646575536542,114.1,87.604,87.53,5.708]
[1646575536741,120.31142867,87.603,87.53,22.8504]
[1646575536942,119.808,87.603,87.53,5.708]
[1646575537147,13.72,87.6,87.53,5.708]
[1646575537341,5.708,87.599,87.53,5.708]
[1646575537544,114.1,87.598,87.53,5.708]
[1646575537744,0.38936981,87.597,87.53,5.708]
[1646575537943,114.1,87.595,87.53,22.8519]
[1646575538144,114.1,87.593,87.53,22.8519]
[1646575538345,5.708,87.592,87.53,22.8519]
[1646575538747,17.1434,87.59,87.53,5.708]
[1646575538947,5.708,87.589,87.53,5.708]
[1646575539144,5.708,87.589,87.529,23.2473]
[1646575539544,23.5949,87.588,87.529,23.2473]
[1646575539753,5.708,87.587,87.529,23.2473]
[1646575540145,5.708,87.587,87.54,17.1421]
[1646575540345,5.708,87.587,87.54,71.72893409]
[1646575541147,5.708,87.587,87.53,22.8521]
[1646575541748,30.8655,87.58,87.53,5.708]
[1646575541952,30.8655,87.58,87.529,23.2473]
[1646575542355,30.8655,87.58,87.521,47.23456353]
[1646575542751,13.72,87.58,87.521,47.23456353]
[1646575543954,13.72,87.58,87.53,17.1437]
[1646575544377,13.72,87.58,87.531,5.708]
[1646575545880,23.5949,87.588,87.522,5.708]
[1646575546080,23.5949,87.588,87.528,2.83613526]
[1646575546582,23.5949,87.588,87.529,24.4615]
[1646575546782,23.5949,87.588,87.55,17.1402]
[1646575546981,23.5949,87.588,87.551,50.96062058]
[1646575548485,23.5949,87.588,87.55,17.1402]
[1646575548683,23.5949,87.588,87.54,17.1415]
[1646575548885,23.5949,87.588,87.541,5.708]
[1646575549684,23.5949,87.588,87.541,57.11682222]
[1646575550485,23.5949,87.588,87.541,51.40882222]
[1646575550984,23.5949,87.588,87.54,17.1415]
[1646575553390,23.5949,87.588,87.541,5.708]
[1646575554094,114.1,87.586,87.529,24.4615]
[1646575554290,114.1,87.584,87.529,24.4615]
[1646575554490,13.72,87.58,87.529,24.4615]
[1646575555308,114.1,87.579,87.524,5.708]
[1646575555490,114.1,87.579,87.48,17.0853]
[1646575555491,114.1,87.579,87.51,17.1475]
[1646575555692,30.866,87.58,87.511,24.7875]
[1646575555891,5.708,87.579,87.512,5.708]
[1646575556291,5.708,87.579,87.513,51.42440104]
[1646575556498,5.708,87.579,87.52,17.1458]
[1646575556692,4.69488102,87.578,87.521,4.79660151]
[1646575556894,4.69488102,87.578,87.487,5.711]
[1646575556895,5.48785417,87.559,87.487,5.711]
[1646575557095,114.1,87.549,87.487,5.711]
[1646575557294,114.1,87.547,87.46,5.713]
[1646575557493,4.92378682,87.546,87.47,17.1551]
[1646575557693,4.47352076,87.546,87.471,5.713]
[1646575557895,17.1569,87.54,87.471,5.713]
[1646575558092,114.1,87.539,87.471,5.213]
[1646575558396,13.72,87.54,87.471,5.213]
[1646575559397,114.1,87.538,87.471,5.213]
[1646575559598,114.1,87.536,87.471,5.213]
[1646575559895,114.1,87.534,87.471,5.213]
[1646575560097,30.8752,87.53,87.471,5.213]
[1646575560296,4.24374478,87.528,87.471,5.213]
[1646575560695,114.1,87.526,87.471,5.213]
[1646575560898,114.1,87.524,87.471,5.213]
[1646575561097,119.814,87.523,87.471,5.213]
[1646575561497,119.814,87.523,87.466,48.06746148]
[1646575561698,114.1,87.519,87.439,24.5946]
[1646575561896,114.1,87.519,87.38,68.45]
[1646575561897,5.18959817,87.518,87.397,17.4555]
[1646575562098,114.1,87.516,87.412,47.1328]
[1646575562297,0.52057307,87.513,87.412,47.1328]
[1646575562498,114.1,87.499,87.412,47.1328]
[1646575562698,114.1,87.497,87.42,17.1651]
[1646575562899,5.716,87.496,87.42,17.1651]
[1646575563102,5.716,87.497,87.42,17.1651]
[1646575564304,23.5759,87.498,87.42,17.1651]
[1646575565306,23.5759,87.498,87.42,20.00123526]
[1646575565607,23.5759,87.498,87.42,17.1651]
[1646575566908,114.1,87.497,87.42,17.1651]
[1646575567107,17.1631,87.49,87.42,17.1651]
[1646575567308,30.8831,87.49,87.42,17.1651]
[1646575568110,114.1,87.489,87.42,17.1651]
[1646575568307,17.166,87.48,87.413,53.1562879]
[1646575568508,30.886,87.48,87.413,53.1562879]
[1646575568709,5.716,87.479,87.412,47.1328]
[1646575569309,114.1,87.478,87.412,47.1328]
[1646575569508,114.1,87.478,87.39,57.2194]
[1646575569509,17.1684,87.47,87.4,17.1692]
[1646575569710,114.56329413,87.469,87.401,51.1214397]
[1646575569915,114.56329413,87.469,87.401,0.57185475]
[1646575569916,114.1,87.467,87.401,0.57185475]
[1646575570113,114.57769288,87.465,87.401,0.57185475]
[1646575570312,114.1,87.463,87.401,0.57185475]
[1646575570536,114.1,87.461,87.401,0.57185475]
[1646575570738,13.72,87.45,87.401,0.57185475]
[1646575570932,29.60919288,87.449,87.401,0.57185475]
[1646575571131,29.1315,87.449,87.401,0.57185475]
[1646575571834,17.1731,87.44,87.401,0.57185475]
[1646575572133,29.1315,87.449,87.401,0.57185475]
[1646575572333,23.4125,87.449,87.401,0.57185475]
[1646575573135,125.4595049,87.448,87.401,0.57185475]
[1646575573337,0.47769288,87.447,87.401,0.57185475]
[1646575573535,114.1,87.445,87.401,0.57185475]
[1646575573732,5.719,87.446,87.401,0.57185475]
[1646575573733,114.1,87.429,87.401,0.57185475]
[1646575573932,0.52651381,87.426,87.401,0.57185475]
[1646575574132,5.719,87.425,87.401,0.57185475]
[1646575574334,114.1,87.419,87.401,0.57185475]
[1646575574534,13.72,87.42,87.401,0.57185475]
[1646575574735,5.72,87.419,87.401,0.57185475]
[1646575574936,13.72,87.42,87.401,0.57185475]
[1646575575733,13.72,87.45,87.401,0.57185475]
[1646575575935,3.10653273,87.49,87.401,0.57185475]
[1646575575936,5.719,87.449,87.401,0.57185475]
[1646575576132,5.719,87.466,87.402,2.83613526]
[1646575576333,24.5968,87.479,87.403,49.71152387]
[1646575576733,24.5968,87.479,87.41,17.1633]
[1646575577232,24.5968,87.479,87.411,2.83613526]
[1646575577636,13.72,87.47,87.401,3.40799001]
[1646575577836,5.81471934,87.468,87.401,3.40799001]
[1646575578038,5.718,87.467,87.401,0.57185475]
[1646575578237,23.6368,87.466,87.401,0.57185475]
[1646575578438,119.818,87.465,87.401,0.57185475]
[1646575578836,148.40725564,87.465,87.401,0.57185475]
[1646575579037,114.1,87.463,87.401,0.57185475]
[1646575579238,13.72,87.45,87.401,0.57185475]
[1646575579539,23.6368,87.449,87.401,0.57185475]
[1646575579737,23.6368,87.449,87.401,0.07185475]
[1646575581343,5.719,87.448,87.401,0.07185475]
[1646575581541,13.72,87.45,87.401,0.07185475]
[1646575581744,5.719,87.466,87.401,0.07185475]
[1646575582347,2.83613526,87.465,87.401,0.07185475]
[1646575582546,5.718,87.464,87.401,0.07185475]
[1646575582947,8.55413526,87.464,87.401,0.07185475]
[1646575583552,5.718,87.464,87.401,0.07185475]
[1646575583747,13.72,87.46,87.401,0.07185475]
[1646575583947,5.718,87.459,87.401,0.07185475]
[1646575584347,24.5556,87.458,87.401,0.07185475]
[1646575584547,5.718,87.457,87.401,0.07185475]
[1646575585747,24.5556,87.458,87.401,0.07185475]
[1646575588849,5.718,87.457,87.401,0.07185475]
[1646575590250,114.1,87.456,87.401,0.07185475]
[1646575590551,114.1,87.454,87.401,0.07185475]
[1646575590749,114.1,87.449,87.401,0.07185475]
[1646575590950,5.719,87.448,87.401,0.07185475]
[1646575591350,4.79911693,87.446,87.401,0.07185475]
[1646575591551,114.1,87.444,87.401,0.07185475]
[1646575591750,13.72,87.44,87.401,0.07185475]
[1646575591950,5.719,87.439,87.401,0.07185475]
[1646575592852,114.1,87.438,87.401,0.07185475]
[1646575593053,5.719,87.437,87.401,0.07185475]
[1646575593252,5.719,87.439,87.401,0.07185475]
[1646575596263,6.25728886,87.438,87.401,0.07185475]
[1646575596456,5.719,87.437,87.401,0.07185475]
[1646575596679,6.25728886,87.436,87.401,0.07185475]
[1646575596857,5.719,87.435,87.401,0.07185475]
[1646575597257,5.719,87.439,87.401,0.07185475]
[1646575597459,6.25729711,87.438,87.401,0.07185475]
[1646575597658,5.719,87.437,87.401,0.07185475]
[1646575598159,6.25729711,87.436,87.401,0.07185475]
[1646575598359,5.719,87.435,87.401,0.07185475]
[1646575598764,5.719,87.439,87.401,0.07185475]
[1646575598961,6.25725606,87.434,87.401,0.07185475]
[1646575599160,5.719,87.433,87.401,0.07185475]
[1646575599360,6.25725606,87.432,87.401,0.07185475]
[1646575599561,5.219,87.431,87.401,0.07185475]
[1646575599861,6.25725606,87.43,87.401,0.07185475]
[1646575600063,5.719,87.429,87.401,0.07185475]
[1646575600466,5.719,87.432,87.401,0.07185475]
[1646575600663,17.1766,87.43,87.401,0.07185475]
[1646575600863,11.97623988,87.429,87.401,0.07185475]
[1646575601061,6.25723988,87.428,87.401,0.07185475]
[1646575601264,5.719,87.427,87.401,0.07185475]
[1646575601463,6.25723988,87.428,87.401,0.07185475]
[1646575601762,6.25754927,87.427,87.401,0.07185475]
[1646575601962,6.25754927,87.432,87.401,0.07185475]
[1646575602264,5.719,87.431,87.401,0.07185475]
[1646575602463,6.25754927,87.43,87.401,0.07185475]
[1646575602663,5.719,87.429,87.401,0.07185475]
[1646575602966,6.25754927,87.428,87.401,0.07185475]
[1646575603162,50.0,87.427,87.371,61.0941296]
[1646575603766,5.72,87.429,87.371,61.0941296]
[1646575603964,5.72,87.429,87.38,17.1734]
[1646575604182,5.72,87.434,87.38,17.1734]
[1646575604364,3.10653273,87.436,87.38,17.1734]
[1646575604567,3.10653273,87.444,87.381,2.83613526]
[1646575604767,5.72,87.459,87.381,2.83613526]
[1646575604768,3.10653273,87.445,87.381,2.83613526]
[1646575604965,1.55200092,87.423,87.38,17.1734]
[1646575605165,1.55200092,87.42,87.38,17.1734]
[1646575605367,1.55200092,87.418,87.371,61.0941296]
[1646575605569,1.55200092,87.409,87.371,61.0941296]
[1646575605967,1.55200092,87.406,87.371,61.0941296]
[1646575606166,3.10653273,87.431,87.371,61.0941296]
[1646575606167,1.55200092,87.408,87.371,61.0941296]
[1646575606471,1.55200092,87.406,87.368,5.719]
[1646575606668,5.721,87.43,87.368,5.719]
[1646575606669,1.55200092,87.397,87.368,5.719]
[1646575606969,1.55200092,87.395,87.311,161.3729]
[1646575607165,1.55200092,87.39,87.311,161.3729]
[1646575607366,1.55200092,87.39,87.313,114.1]
[1646575607569,1.55200092,87.388,87.34,17.1813]
[1646575607767,1.55200092,87.383,87.341,51.51101919]
[1646575607972,1.55200092,87.388,87.341,51.51101919]
[1646575608167,1.55200092,87.39,87.341,51.51101919]
[1646575608971,1.55200092,87.391,87.341,51.51101919]
[1646575609169,1.55200092,87.391,87.35,17.1797]
[1646575609369,1.55200092,87.392,87.35,17.1797]
[1646575609569,5.723,87.408,87.341,51.51101919]
[1646575609570,1.55200092,87.389,87.341,51.51101919]
[1646575609968,1.55200092,87.388,87.341,51.51101919]
[1646575610169,1.55200092,87.39,87.341,51.51101919]
[1646575610770,1.55200092,87.391,87.331,24.0654]
[1646575610970,114.1,87.398,87.331,24.0654]
[1646575610971,1.55200092,87.383,87.331,24.0654]
[1646575611176,1.55200092,87.376,87.331,24.0654]
[1646575611770,1.55200092,87.381,87.332,55.79638755]
[1646575612069,1.55200092,87.381,87.332,53.29638755]
[1646575612272,1.55200092,87.383,87.34,17.1816]
[1646575612470,5.723,87.382,87.332,53.29638755]
[1646575612870,5.723,87.382,87.333,2.83613526]
[1646575613069,1.55200092,87.386,87.333,2.83613526]
[1646575613270,1.55200092,87.386,87.34,17.1815]
[1646575613471,1.55200092,87.384,87.332,53.29638755]
[1646575613769,1.55200092,87.385,87.332,53.29638755]
[1646575613972,17.1838,87.39,87.332,53.29638755]
[1646575614376,1.55200092,87.389,87.332,53.29638755]
[1646575614574,5.723,87.388,87.332,53.29638755]
[1646575615375,5.723,87.388,87.34,17.1818]
[1646575615578,7.27500092,87.388,87.332,53.29638755]
[1646575615776,5.723,87.388,87.332,53.29638755]
[1646575618582,5.723,87.388,87.34,17.1817]
[1646575618782,22.6266,87.389,87.34,17.1817]
[1646575620298,5.723,87.403,87.34,17.1817]
[1646575620898,5.722,87.407,87.34,17.1817]
[1646575621301,1.55200092,87.408,87.34,17.1817]
[1646575621501,13.72,87.41,87.341,22.6813]
[1646575621502,1.55200092,87.405,87.341,22.6813]
[1646575621704,5.722,87.404,87.341,22.6813]
[1646575622601,7.27400092,87.405,87.341,22.6813]
[1646575622800,7.27400092,87.405,87.35,17.1797]
[1646575623100,5.722,87.405,87.351,64.41930885]
[1646575623601,7.27400092,87.406,87.351,64.41930885]
[1646575624802,17.1816,87.4,87.351,64.41930885]
[1646575625003,5.722,87.399,87.351,64.41930885]
[1646575625603,5.722,87.405,87.351,64.41930885]
[1646575626104,7.27400092,87.405,87.351,64.41930885]
[1646575626303,5.722,87.405,87.351,64.41930885]
[1646575626506,7.27400092,87.405,87.351,64.41930885]
[1646575626703,5.722,87.405,87.351,64.41930885]
[1646575627605,1.55200092,87.402,87.35,17.1782]
[1646575627813,5.722,87.401,87.35,17.1782]
[1646575628004,1.55200092,87.404,87.35,17.1782]
[1646575628206,5.722,87.403,87.35,17.1782]
[1646575628409,5.722,87.404,87.35,17.1782]
[1646575630208,7.27400092,87.405,87.35,17.1782]
[1646575630607,1.55200092,87.399,87.35,17.1782]
[1646575630807,5.722,87.398,87.35,17.1782]
[1646575631007,1.55200092,87.403,87.348,57.91585067]
[1646575631008,5.722,87.402,87.348,57.91585067]
[1646575631306,17.1815,87.4,87.348,57.91585067]
[1646575631508,5.722,87.399,87.348,57.91585067]
[1646575631708,1.55200092,87.4,87.348,57.91585067]
[1646575631907,5.722,87.399,87.348,57.91585067]
[1646575632111,5.722,87.403,87.348,57.91585067]
[1646575633008,1.55200092,87.401,87.348,57.91585067]
[1646575633210,5.722,87.4,87.35,17.1798]
[1646575633408,1.55200092,87.399,87.324,2.83613526]
[1646575633609,1.55200092,87.39,87.314,2.83613526]
[1646575634007,1.55200092,87.388,87.314,2.83613526]
[1646575634418,1.55200092,87.385,87.314,2.83613526]
[1646575634616,1.55200092,87.378,87.312,23.5028]
[1646575634809,15.27200092,87.37,87.312,23.5028]
[1646575635010,0.57209916,87.367,87.284,2.83613526]
[1646575635209,0.57209916,87.364,87.285,23.5028]
[1646575635510,13.72,87.36,87.286,60.81988696]
[1646575635709,13.72,87.36,87.286,60.31988696]
[1646575635910,22.748,87.359,87.286,60.31988696]
[1646575636109,22.748,87.359,87.29,17.1902]
[1646575636310,5.724,87.358,87.29,17.1902]
[1646575636710,14.194,87.358,87.29,17.1902]
[1646575637713,14.194,87.358,87.287,2.83613526]
[1646575637911,1.55200092,87.341,87.287,2.83613526]
[1646575638113,1.55200092,87.339,87.286,60.31988696]
[1646575638716,1.55200092,87.338,87.286,60.31988696]
[1646575638913,1.55200092,87.338,87.287,2.83613526]
[1646575639112,1.55200092,87.337,87.287,2.83613526]
[1646575639317,1.55200092,87.341,87.288,24.9559]
[1646575639616,1.55200092,87.342,87.288,24.9559]
[1646575639813,1.55200092,87.34,87.288,24.9559]
[1646575640013,1.55200092,87.342,87.288,24.9559]
[1646575640213,5.726,87.341,87.288,24.9559]
[1646575640413,5.726,87.342,87.288,24.9559]
[1646575640713,24.5112,87.341,87.288,24.9559]
[1646575640913,5.726,87.34,87.288,24.9559]
[1646575641137,22.9204,87.34,87.288,24.9559]
[1646575641314,24.47240092,87.34,87.288,24.9559]
[1646575641513,1.55200092,87.336,87.286,60.31988696]
[1646575641713,5.726,87.335,87.286,60.31988696]
[1646575641913,5.726,87.338,87.286,60.31988696]
[1646575642116,5.726,87.339,87.286,60.31988696]
[1646575643216,6.89261537,87.339,87.286,60.31988696]
[1646575643414,5.726,87.339,87.286,60.31988696]
[1646575644016,5.726,87.339,87.27,17.194]
[1646575644215,0.36944475,87.338,87.27,17.194]
[1646575644415,5.727,87.337,87.27,17.194]
[1646575644614,5.727,87.339,87.27,17.194]
[1646575645015,4.53500928,87.338,87.271,52.58670313]
[1646575645216,5.727,87.337,87.28,17.1918]
[1646575645418,114.1,87.336,87.264,2.83613526]
[1646575645616,0.40669014,87.333,87.261,0.25]
[1646575645817,13.72,87.33,87.261,0.25]
[1646575646016,17.1992,87.32,87.261,0.25]
[1646575646216,0.47149074,87.318,87.261,0.25]
[1646575646517,0.47149074,87.316,87.261,0.25]
[1646575646716,5.728,87.315,87.261,0.25]
[1646575646916,5.728,87.318,87.261,0.25]
[1646575651221,17.201,87.31,87.261,0.25]
[1646575651427,5.728,87.309,87.261,0.25]
[1646575651822,24.4375,87.308,87.261,0.25]
[1646575652020,1.14674062,87.306,87.261,0.25]
[1646575652221,5.728,87.305,87.261,0.25]
[1646575653225,5.728,87.307,87.261,0.25]
[1646575653426,7.28000092,87.332,87.261,0.25]
[1646575653624,7.28000092,87.332,87.262,2.83613526]
[1646575653823,1.55200092,87.352,87.27,17.1931]
[1646575654123,5.727,87.353,87.272,114.1]
[1646575654325,30.1635,87.354,87.274,114.1]
[1646575654527,5.726,87.361,87.276,114.1]
[1646575654731,5.726,87.365,87.278,114.1]
[1646575654930,1.55200092,87.367,87.29,17.188]
[1646575655124,1.55200092,87.367,87.292,49.90445254]
[1646575655327,5.724,87.366,87.292,49.90445254]
[1646575655525,1.55200092,87.373,87.293,114.1]
[1646575655728,22.6285,87.379,87.293,2.83613526]
[1646575655729,5.724,87.372,87.293,2.83613526]
[1646575655927,29.05912038,87.372,87.293,2.83613526]
[1646575656127,29.05912038,87.372,87.292,49.90445254]
[1646575656327,23.33512038,87.371,87.292,49.90445254]
[1646575656527,5.724,87.37,87.292,49.90445254]
[1646575656731,1.55200092,87.376,87.293,122.66013526]
[1646575657030,1.55200092,87.375,87.293,8.56013526]
[1646575657232,1.55200092,87.375,87.294,2.83613526]
[1646575657433,1.55200092,87.377,87.295,5.724]
[1646575657632,22.6285,87.379,87.3,17.1849]
[1646575657830,22.6285,87.379,87.301,5.724]
[1646575658033,24.18050092,87.379,87.297,5.724]
[1646575658629,24.18050092,87.379,87.298,2.83613526]
[1646575658830,24.18050092,87.379,87.299,5.724]
[1646575658831,5.724,87.378,87.299,5.724]
[1646575659032,1.55200092,87.377,87.299,5.724]
[1646575659232,7.27600092,87.376,87.293,5.724]
[1646575659431,5.724,87.376,87.292,55.62845254]
[1646575659638,1.55200092,87.375,87.293,2.83613526]
[1646575659833,1.55200092,87.368,87.292,49.90445254]
[1646575660138,6.20127169,87.367,87.292,49.90445254]
[1646575660335,1.55200092,87.361,87.292,55.62845254]
[1646575660563,5.724,87.36,87.292,55.62845254]
[1646575660770,1.55200092,87.365,87.292,55.62845254]
[1646575661367,1.55200092,87.364,87.292,55.62845254]
[1646575661767,5.724,87.363,87.292,55.62845254]
[1646575662167,7.27600092,87.363,87.292,55.62845254]
[1646575662367,1.55200092,87.363,87.292,55.62845254]
[1646575662567,1.55200092,87.363,87.293,114.1]
[1646575662771,1.55200092,87.364,87.295,114.1]
[1646575662969,1.55200092,87.373,87.296,5.724]
[1646575663175,1.55200092,87.373,87.296,2.83613526]
[1646575663469,1.55200092,87.371,87.296,2.83613526]
[1646575663669,1.55200092,87.371,87.297,8.56013526]
[1646575663869,1.55200092,87.371,87.297,2.83613526]
[1646575664072,1.55200092,87.371,87.3,17.1854]
[1646575664274,1.55200092,87.369,87.301,114.1]
[1646575664472,1.55200092,87.371,87.303,114.1]
[1646575664677,1.55200092,87.371,87.305,114.1]
[1646575664875,1.55200092,87.377,87.307,114.1]
[1646575665070,1.55200092,87.38,87.308,5.724]
[1646575665272,1.55200092,87.377,87.309,50.5791183]
[1646575665469,1.55200092,87.378,87.31,5.724]
[1646575665670,1.55200092,87.378,87.31,8.56013526]
[1646575665868,1.55200092,87.378,87.311,22.8812]
[1646575666069,1.55200092,87.378,87.312,5.724]
[1646575666269,1.55200092,87.378,87.311,25.71733526]
[1646575666270,7.27600092,87.377,87.311,22.8812]
[1646575666469,1.55200092,87.366,87.311,22.8812]
[1646575666674,1.55200092,87.368,87.311,22.8812]
[1646575666871,1.55200092,87.371,87.312,5.724]
[1646575667071,23.06,87.391,87.312,5.724]
[1646575667072,1.55200092,87.37,87.312,5.724]
[1646575667270,1.55200092,87.37,87.32,17.1818]
[1646575667473,1.55200092,87.374,87.321,5.724]
[1646575667670,23.06,87.391,87.321,5.724]
[1646575667671,1.55200092,87.373,87.321,28.337]
[1646575667874,1.55200092,87.377,87.321,28.337]
[1646575668071,1.55200092,87.376,87.321,28.337]
[1646575668272,1.55200092,87.375,87.33,17.18]
[1646575668474,1.55200092,87.375,87.331,68.72323655]
[1646575668673,1.55200092,87.382,87.331,63.00023655]
[1646575668873,5.723,87.381,87.332,114.1]
[1646575669075,1.55200092,87.385,87.333,5.723]
[1646575669274,1.55200092,87.385,87.334,114.1]
[1646575669473,1.55200092,87.387,87.335,119.823]
[1646575669677,1.55200092,87.387,87.335,5.723]
[1646575670075,1.55200092,87.387,87.34,17.1782]
[1646575670275,1.55200092,87.388,87.34,17.1782]
[1646575670577,1.55200092,87.391,87.34,17.1782]
[1646575670775,1.55200092,87.389,87.341,5.723]
[1646575671175,1.55200092,87.392,87.35,17.1762]
[1646575671479,1.55200092,87.394,87.351,59.01536725]
[1646575672275,1.55200092,87.396,87.351,59.01536725]
[1646575672475,1.55200092,87.395,87.351,59.01536725]
[1646575672675,1.55200092,87.396,87.351,59.01536725]
[1646575673278,1.55200092,87.398,87.351,59.01536725]
[1646575673475,1.55200092,87.398,87.36,17.1751]
[1646575673876,1.55200092,87.398,87.351,59.01536725]
[1646575674577,5.722,87.397,87.351,59.01536725]
[1646575674977,1.55200092,87.399,87.351,59.01536725]
[1646575675177,1.55200092,87.4,87.351,59.01536725]
[1646575675781,1.55200092,87.401,87.351,59.01536725]
[1646575676378,1.55200092,87.4,87.351,59.01536725]
[1646575676579,1.55200092,87.4,87.36,17.1759]
[1646575676981,1.55200092,87.399,87.36,17.1759]
[1646575677782,1.55200092,87.4,87.36,17.1759]
[1646575677981,1.55200092,87.399,87.36,17.1759]
[1646575678182,1.55200092,87.398,87.36,17.1759]
[1646575679810,1.55200092,87.397,87.36,17.1759]
[1646575680007,1.55200092,87.398,87.36,17.1759]
[1646575680409,1.55200092,87.395,87.36,17.1759]
[1646575681207,1.55200092,87.396,87.36,17.1759]
[1646575681411,1.55200092,87.395,87.36,17.1759]
[1646575682109,1.55200092,87.396,87.36,17.1759]
[1646575682309,1.55200092,87.388,87.36,17.1759]
[1646575682709,1.55200092,87.389,87.36,17.1759]
[1646575683008,1.55200092,87.388,87.36,17.1759]
[1646575683209,1.55200092,87.389,87.36,17.1759]
[1646575683810,1.55200092,87.389,87.361,114.1]
[1646575684012,1.55200092,87.401,87.37,17.171]
[1646575684410,1.55200092,87.398,87.37,17.171]
[1646575684810,1.55200092,87.398,87.371,59.83921722]
[1646575685012,1.55200092,87.398,87.38,17.1729]
[1646575685511,1.55200092,87.399,87.38,17.1729]
[1646575685911,1.55200092,87.401,87.38,17.1729]
[1646575686313,1.55200092,87.4,87.38,17.1729]
[1646575686814,1.55200092,87.399,87.38,17.1729]
[1646575687011,1.55200092,87.4,87.38,17.1729]
[1646575687911,1.55200092,87.401,87.38,17.1729]
[1646575688913,1.55200092,87.402,87.38,17.1729]
[1646575689612,1.55200092,87.401,87.38,17.1729]
[1646575689813,1.55200092,87.402,87.38,17.1729]
[1646575690014,1.55200092,87.403,87.38,17.1729]
[1646575690214,1.55200092,87.411,87.38,17.1729]
[1646575690414,1.55200092,87.412,87.38,17.1729]
[1646575690613,1.55200092,87.411,87.38,17.1729]
[1646575690814,1.55200092,87.411,87.381,114.1]
[1646575691016,1.55200092,87.411,87.39,17.1681]
[1646575691216,1.55200092,87.414,87.39,17.1681]
[1646575691415,1.55200092,87.411,87.39,17.1681]
[1646575691614,1.55200092,87.412,87.39,17.1681]
[1646575691822,1.55200092,87.414,87.391,64.11332032]
[1646575692114,1.55200092,87.414,87.4,17.1682]
[1646575692515,1.55200092,87.414,87.391,64.11332032]
[1646575692715,1.55200092,87.411,87.391,64.11332032]
[1646575692918,5.85011269,87.483,87.391,64.11332032]
[1646575692919,1.55200092,87.408,87.391,64.11332032]
[1646575693317,1.55200092,87.406,87.391,64.11332032]
[1646575693820,1.55200092,87.407,87.391,64.11332032]
[1646575695021,1.55200092,87.41,87.391,64.11332032]
[1646575695426,1.55200092,87.408,87.391,64.11332032]
[1646575695623,1.55200092,87.407,87.391,64.11332032]
[1646575695823,1.55200092,87.406,87.391,64.11332032]
[1646575696023,1.55200092,87.407,87.391,64.11332032]
[1646575696224,1.55200092,87.407,87.36,60.07553526]
[1646575696431,1.55200092,87.401,87.351,22.6758]
[1646575696624,1.55200092,87.391,87.351,22.6758]
[1646575696825,1.55200092,87.389,87.351,22.6758]
[1646575697225,1.55200092,87.387,87.362,50.82965191]
[1646575697830,1.55200092,87.388,87.362,50.82965191]
[1646575698226,1.55200092,87.387,87.362,50.82965191]
[1646575698427,1.55200092,87.388,87.362,50.82965191]